fUST/lending_fUST_20250219
["ID","MTS","AMOUNT","RATE_DAILY","PERIOD"]
[353540049,1739904661036,-500.0,0.00014356,2]
[353540050,1739904661046,-500.0,0.00014356,2]
[353540051,1739904661056,-531.62,0.00014356,2]
[353540052,1739904661065,-500.0,0.00014356,2]
[353540053,1739904661075,-1659.04,0.00014356,2]
[353540054,1739904661084,-500.0,0.00014356,2]
[353540055,1739904661094,-500.0,0.00014356,2]
[353540056,1739904661103,-537.36,0.00014356,2]
[353540057,1739904661113,-605.637978,0.00014356,2]
[353540058,1739904661122,-605.637978,0.00014356,2]
[353540059,1739904661131,-685.01,0.00014356,2]
[353540060,1739904661141,-500.0,0.00014356,2]
[353540061,1739904661150,-500.0,0.00014356,2]
[353540062,1739904661160,-500.0,0.00014356,2]
[353540063,1739904661169,-500.0,0.00014356,2]
[353540064,1739904661179,-500.0,0.00014356,2]
[353540065,1739904661188,-151.0,0.00014356,2]
[353540066,1739904661198,-3166.95,0.00014356,2]
[353540067,1739904661208,-500.0,0.00014356,2]
[353540068,1739904661218,-627.01,0.00014356,2]
[353540069,1739904661227,-1452.95,0.00014356,2]
[353540070,1739904661237,-267.607392,0.00014356,2]
[353540071,1739904661247,-1398.72,0.00014356,2]
[353540072,1739904661260,-267.607392,0.00014356,2]
[353540073,1739904661270,-730.74,0.00014356,2]
[353540074,1739904661281,-500.0,0.00014356,2]
[353540075,1739904661291,-500.0,0.00014356,2]
[353540076,1739904661302,-500.0,0.00014356,2]
[353540077,1739904661312,-500.0,0.00014356,2]
[353540078,1739904661322,-748.94,0.00014356,2]
[353540079,1739904661332,-500.0,0.00014356,2]
[353540080,1739904661342,-10223.13,0.00014356,2]
[353540081,1739904661352,-500.0,0.00014356,2]
[353540082,1739904661361,-500.0,0.00014356,2]
[353540083,1739904661371,-1165.79,0.00014356,2]
[353540084,1739904661385,-500.0,0.00014356,2]
[353540085,1739904661396,-588.57,0.00014356,2]
[353540086,1739904661406,-1349.29,0.00014356,2]
[353540087,1739904661415,-500.0,0.00014356,2]
[353540088,1739904661426,-638.65,0.00014356,2]
[353540089,1739904661435,-772.53,0.00014356,2]
[353540090,1739904661449,-1535.25,0.00014356,2]
[353540091,1739904661458,-500.0,0.00014356,2]
[353540092,1739904661468,-500.0,0.00014356,2]
[353540093,1739904661478,-2947.02,0.00014356,2]
[353540094,1739904661488,-500.0,0.00014356,2]
[353540095,1739904661498,-798.91,0.00014356,2]
[353540096,1739904661507,-608.49,0.00014356,2]
[353540097,1739904661518,-500.0,0.00014356,2]
[353540098,1739904661528,-500.0,0.00014356,2]
[353540099,1739904661538,-500.0,0.00014356,2]
[353540100,1739904661548,-31783.51,0.00014356,2]
[353540101,1739904661557,-500.0,0.00014356,2]
[353540102,1739904661566,-1717.72,0.00014356,2]
[353540103,1739904661577,-1006.6,0.00014356,2]
[353540104,1739904661638,-784.86,0.00014356,2]
[353540105,1739904661653,-500.0,0.00014356,2]
[353540106,1739904661663,-500.0,0.00014356,2]
[353540107,1739904661673,-554.99,0.00014356,2]
[353540108,1739904661684,-500.0,0.00014438,2]
[353540109,1739904661694,-500.0,0.00014438,2]
[353540110,1739904661708,-500.0,0.00014438,2]
[353540111,1739904661731,-500.0,0.00014438,2]
[353540112,1739904661754,-500.0,0.00014438,2]
[353540113,1739904661780,-500.0,0.00014438,2]
[353540114,1739904661802,-196.656108,0.00014438,2]
[353540115,1739904661825,-686.89,0.00014438,2]
[353540116,1739904661850,-500.0,0.00014438,2]
[353540117,1739904661873,-655.2,0.00014438,2]
[353540118,1739904661913,-500.0,0.00014438,2]
[353540119,1739904661937,-500.0,0.00014438,2]
[353540120,1739904661960,-500.0,0.00014438,2]
[353540121,1739904661983,-500.0,0.00014438,2]
[353540122,1739904662015,-500.0,0.00014438,2]
[353540123,1739904662027,-979.8,0.00014438,2]
[353540124,1739904662037,-583.66,0.00014438,2]
[353540125,1739904662047,-606.93,0.00014438,2]
[353540126,1739904662056,-500.0,0.00014438,2]
[353540127,1739904662066,-500.0,0.00014438,2]
[353540128,1739904662075,-500.0,0.00014438,2]
[353540129,1739904662085,-500.0,0.00014438,2]
[353540130,1739904662094,-500.0,0.00014438,2]
[353540131,1739904662104,-500.0,0.00014438,2]
[353540132,1739904662114,-616.3,0.00014438,2]
[353540133,1739904662123,-504.11347222,0.00014438,2]
[353540134,1739904662135,-500.0,0.00014438,2]
[353540135,1739904662144,-500.0,0.00014438,2]
[353540136,1739904662154,-5839.52,0.00014438,2]
[353540137,1739904662164,-500.0,0.00014438,2]
[353540138,1739904662174,-500.0,0.00014438,2]
[353540139,1739904662183,-500.0,0.00014438,2]
[353540140,1739904662193,-500.0,0.00014438,2]
[353540141,1739904662203,-500.0,0.00014438,2]
[353540142,1739904662212,-500.0,0.00014438,2]
[353540143,1739904662222,-735.62,0.00014438,2]
[353540144,1739904662231,-500.0,0.00014438,2]
[353540145,1739904662240,-500.0,0.00014438,2]
[353540146,1739904662251,-500.0,0.00014438,2]
[353540147,1739904662261,-500.0,0.00014438,2]
[353540148,1739904662271,-531.62,0.00014438,2]
[353540149,1739904662280,-500.0,0.00014438,2]
[353540150,1739904662289,-1659.04,0.00014438,2]
[353540151,1739904662299,-500.0,0.00014438,2]
[353540152,1739904662309,-500.0,0.00014438,2]
[353540153,1739904662318,-537.36,0.00014438,2]
[353540154,1739904662327,-685.01,0.00014438,2]
[353540155,1739904662337,-500.0,0.00014438,2]
[353540156,1739904662347,-500.0,0.00014438,2]
[353540157,1739904662356,-500.0,0.00014438,2]
[353540158,1739904662365,-500.0,0.00014438,2]
[353540159,1739904662375,-572.71719466,0.00014438,2]
[353540160,1739904662386,-3166.95,0.00014438,2]
[353540161,1739904662395,-500.0,0.00014438,2]
[353540162,1739904662405,-627.01,0.00014438,2]
[353540163,1739904662415,-1452.95,0.00014438,2]
[353540164,1739904662425,-1398.72,0.00014438,2]
[353540165,1739904662435,-730.74,0.00014438,2]
[353540166,1739904662445,-500.0,0.00014438,2]
[353540167,1739904662454,-500.0,0.00014438,2]
[353540168,1739904662464,-500.0,0.00014438,2]
[353540169,1739904662473,-500.0,0.00014438,2]
[353540170,1739904662482,-748.94,0.00014438,2]
[353540171,1739904662491,-500.0,0.00014438,2]
[353540172,1739904662501,-10223.13,0.00014438,2]
[353540173,1739904662511,-500.0,0.00014438,2]
[353540174,1739904662520,-500.0,0.00014438,2]
[353540175,1739904662530,-1165.79,0.00014438,2]
[353540176,1739904662540,-500.0,0.00014438,2]
[353540177,1739904662550,-1349.29,0.00014438,2]
[353540178,1739904662559,-500.0,0.00014438,2]
[353540179,1739904662569,-638.65,0.00014438,2]
[353540180,1739904662578,-772.53,0.00014438,2]
[353540181,1739904662587,-1535.25,0.00014438,2]
[353540182,1739904662597,-500.0,0.00014438,2]
[353540183,1739904662606,-500.0,0.00014438,2]
[353540184,1739904662616,-500.0,0.00014438,2]
[353540185,1739904662625,-2947.02,0.00014438,2]
[353540186,1739904662636,-798.91,0.00014438,2]
[353540187,1739904662645,-608.49,0.00014438,2]
[353540188,1739904662655,-500.0,0.00014438,2]
[353540189,1739904662665,-500.0,0.00014438,2]
[353540190,1739904662675,-500.0,0.00014438,2]
[353540191,1739904662684,-31783.51,0.00014438,2]
[353540192,1739904662693,-1717.72,0.00014438,2]
[353540193,1739904662703,-1006.6,0.00014438,2]
[353540194,1739904662713,-784.86,0.00014438,2]
[353540195,1739904662722,-500.0,0.00014438,2]
[353540196,1739904662780,-500.0,0.00014438,2]
[353540197,1739904662792,-554.99,0.00014438,2]
[353540198,1739904662802,-800.0,0.00014438,2]
[353540199,1739904662812,-500.0,0.0001452,2]
[353540200,1739904662821,-542.51,0.0001452,2]
[353540201,1739904662831,-500.0,0.0001452,2]
[353540202,1739904662840,-393.12,0.0001452,2]
[353540203,1739904662850,-500.0,0.0001452,2]
[353540204,1739904662860,-500.0,0.0001452,2]
[353540205,1739904662871,-500.0,0.0001452,2]
[353540206,1739904662884,-686.89,0.0001452,2]
[353540207,1739904662894,-500.0,0.0001452,2]
[353540208,1739904662904,-655.2,0.0001452,2]
[353540209,1739904662914,-500.0,0.0001452,2]
[353540210,1739904662924,-500.0,0.0001452,2]
[353540211,1739904662934,-297.59622067,0.0001452,2]
[353540212,1739904662943,-500.0,0.0001452,2]
[353540213,1739904662953,-500.0,0.0001452,2]
[353540214,1739904662963,-979.8,0.0001452,2]
[353540215,1739904662972,-583.66,0.0001452,2]
[353540216,1739904662982,-606.93,0.0001452,2]
[353540217,1739904662991,-500.0,0.0001452,2]
[353540218,1739904663001,-500.0,0.0001452,2]
[353540219,1739904663010,-500.0,0.0001452,2]
[353540220,1739904663020,-500.0,0.0001452,2]
[353540221,1739904663030,-500.0,0.0001452,2]
[353540222,1739904663040,-500.0,0.0001452,2]
[353540223,1739904663050,-616.3,0.0001452,2]
[353540224,1739904663060,-500.0,0.0001452,2]
[353540225,1739904663070,-500.0,0.0001452,2]
[353540226,1739904663080,-5839.52,0.0001452,2]
[353540227,1739904663091,-500.0,0.0001452,2]
[353540228,1739904663100,-500.0,0.0001452,2]
[353540229,1739904663111,-500.0,0.0001452,2]
[353540230,1739904663122,-500.0,0.0001452,2]
[353540231,1739904663135,-500.0,0.0001452,2]
[353540232,1739904663145,-500.0,0.0001452,2]
[353540233,1739904663156,-735.62,0.0001452,2]
[353540234,1739904663166,-500.0,0.0001452,2]
[353540235,1739904663176,-500.0,0.0001452,2]
[353540236,1739904663187,-500.0,0.0001452,2]
[353540237,1739904663199,-531.62,0.0001452,2]
[353540238,1739904663212,-500.0,0.0001452,2]
[353540239,1739904663233,-1659.04,0.0001452,2]
[353540240,1739904663251,-500.0,0.0001452,2]
[353540241,1739904663271,-500.0,0.0001452,2]
[353540242,1739904663294,-537.36,0.0001452,2]
[353540243,1739904663313,-685.01,0.0001452,2]
[353540244,1739904663334,-500.0,0.0001452,2]
[353540245,1739904663352,-500.0,0.0001452,2]
[353540246,1739904663368,-500.0,0.0001452,2]
[353540247,1739904663390,-500.0,0.0001452,2]
[353540248,1739904663411,-3166.95,0.0001452,2]
[353540249,1739904663432,-500.0,0.0001452,2]
[353540250,1739904663446,-627.01,0.0001452,2]
[353540251,1739904663467,-1452.95,0.0001452,2]
[353540252,1739904663484,-1398.72,0.0001452,2]
[353540253,1739904663502,-730.74,0.0001452,2]
[353540254,1739904663518,-500.0,0.0001452,2]
[353540255,1739904663535,-500.0,0.0001452,2]
[353540256,1739904663550,-500.0,0.0001452,2]
[353540257,1739904663566,-500.0,0.0001452,2]
[353540258,1739904663582,-748.94,0.0001452,2]
[353540259,1739904663598,-518.57079483,0.0001452,2]
[353540260,1739904663613,-10223.13,0.0001452,2]
[353540261,1739904663628,-500.0,0.0001452,2]
[353540262,1739904663650,-500.0,0.0001452,2]
[353540263,1739904663666,-1165.79,0.0001452,2]
[353540264,1739904663683,-500.0,0.0001452,2]
[353540265,1739904663699,-1349.29,0.0001452,2]
[353540266,1739904663714,-500.0,0.0001452,2]
[353540267,1739904663731,-638.65,0.0001452,2]
[353540268,1739904663747,-772.53,0.0001452,2]
[353540269,1739904663763,-1535.25,0.0001452,2]
[353540270,1739904663778,-500.0,0.0001452,2]
[353540271,1739904663796,-500.0,0.0001452,2]
[353540272,1739904663811,-500.0,0.0001452,2]
[353540273,1739904663827,-2947.02,0.0001452,2]
[353540274,1739904663842,-798.91,0.0001452,2]
[353540275,1739904663858,-608.49,0.0001452,2]
[353540276,1739904663874,-500.0,0.0001452,2]
[353540277,1739904663894,-500.0,0.0001452,2]
[353540278,1739904663909,-500.0,0.0001452,2]
[353540279,1739904663924,-31783.51,0.0001452,2]
[353540280,1739904663940,-1717.72,0.0001452,2]
[353540281,1739904664033,-1006.6,0.0001452,2]
[353540282,1739904664044,-784.86,0.0001452,2]
[353540283,1739904664054,-510.83014643,0.0001452,2]
[353540284,1739904664064,-500.0,0.0001452,2]
[353540285,1739904664074,-336.0,0.0001457,2]
[353540286,1739904664084,-500.0,0.00014593,7]
[353540287,1739904664094,-500.0,0.00014593,7]
[353540288,1739904664103,-500.0,0.00014593,7]
[353540289,1739904664114,-500.0,0.00014593,7]
[353540290,1739904664123,-500.0,0.00014593,7]
[353540291,1739904664136,-500.0,0.00014593,7]
[353540292,1739904664147,-500.0,0.00014593,7]
[353540293,1739904664157,-500.0,0.00014593,7]
[353540294,1739904664168,-500.0,0.00014593,7]
[353540295,1739904664178,-500.0,0.00014593,7]
[353540296,1739904664189,-500.0,0.00014593,7]
[353540297,1739904664199,-500.0,0.00014593,7]
[353540298,1739904664210,-500.0,0.00014593,7]
[353540299,1739904664220,-500.0,0.00014593,7]
[353540300,1739904664230,-500.0,0.00014593,7]
[353540301,1739904664240,-500.0,0.00014593,7]
[353540302,1739904664250,-500.0,0.00014593,7]
[353540303,1739904664260,-500.0,0.00014593,7]
[353540304,1739904664271,-500.0,0.00014593,7]
[353540305,1739904664281,-500.0,0.00014593,7]
[353540306,1739904664292,-500.0,0.00014593,7]
[353540307,1739904664302,-500.0,0.00014593,7]
[353540308,1739904664311,-500.0,0.00014593,7]
[353540309,1739904664322,-500.0,0.00014593,7]
[353540310,1739904664332,-500.0,0.00014593,7]
[353540311,1739904664343,-500.0,0.00014593,7]
[353540312,1739904664353,-500.0,0.00014593,7]
[353540313,1739904664363,-500.0,0.00014593,7]
[353540314,1739904664373,-500.0,0.00014593,7]
[353540315,1739904664386,-500.0,0.00014593,7]
[353540316,1739904664396,-500.0,0.00014593,7]
[353540317,1739904664406,-500.0,0.00014593,7]
[353540318,1739904664415,-500.0,0.00014593,7]
[353540319,1739904664425,-500.0,0.00014593,7]
[353540320,1739904664435,-252.96,0.00014593,7]
[353540321,1739904664444,-500.0,0.00014602,2]
[353540322,1739904664454,-629.53,0.00014602,2]
[353540323,1739904664464,-500.0,0.00014602,2]
[353540324,1739904664474,-686.89,0.00014602,2]
[353540325,1739904664483,-247.98,0.00014602,2]
[353540326,1739904664493,-655.2,0.00014602,2]
[353540327,1739904664503,-500.0,0.00014602,2]
[353540328,1739904664513,-500.0,0.00014602,2]
[353540329,1739904664524,-500.0,0.00014602,2]
[353540330,1739904664533,-500.0,0.00014602,2]
[353540331,1739904664544,-979.8,0.00014602,2]
[353540332,1739904664554,-583.66,0.00014602,2]
[353540333,1739904664564,-606.93,0.00014602,2]
[353540334,1739904664573,-500.0,0.00014602,2]
[353540335,1739904664583,-500.0,0.00014602,2]
[353540336,1739904664593,-500.0,0.00014602,2]
[353540337,1739904664603,-500.0,0.00014602,2]
[353540338,1739904664613,-500.0,0.00014602,2]
[353540339,1739904664622,-500.0,0.00014602,2]
[353540340,1739904664635,-616.3,0.00014602,2]
[353540341,1739904664645,-500.0,0.00014602,2]
[353540342,1739904664654,-500.0,0.00014602,2]
[353540343,1739904664664,-5839.52,0.00014602,2]
[353540344,1739904664674,-500.0,0.00014602,2]
[353540345,1739904664684,-500.0,0.00014602,2]
[353540346,1739904664694,-500.0,0.00014602,2]
[353540347,1739904664704,-500.0,0.00014602,2]
[353540348,1739904664714,-500.0,0.00014602,2]
[353540349,1739904664723,-500.0,0.00014602,2]
[353540350,1739904664733,-735.62,0.00014602,2]
[353540351,1739904664743,-500.0,0.00014602,2]
[353540352,1739904664752,-500.0,0.00014602,2]
[353540353,1739904664762,-500.0,0.00014602,2]
[353540354,1739904664772,-531.62,0.00014602,2]
[353540355,1739904664782,-500.0,0.00014602,2]
[353540356,1739904664795,-1659.04,0.00014602,2]
[353540357,1739904664805,-500.0,0.00014602,2]
[353540358,1739904664815,-388.98823223,0.00014602,2]
[353540359,1739904664825,-537.36,0.00014602,2]
[353540360,1739904664835,-685.01,0.00014602,2]
[353540361,1739904664847,-500.0,0.00014602,2]
[353540362,1739904664869,-500.0,0.00014602,2]
[353540363,1739904664903,-500.0,0.00014602,2]
[353540364,1739904664941,-500.0,0.00014602,2]
[353540365,1739904664967,-3166.95,0.00014602,2]
[353540366,1739904664990,-500.0,0.00014602,2]
[353540367,1739904665013,-627.01,0.00014602,2]
[353540368,1739904665037,-1452.95,0.00014602,2]
[353540369,1739904665061,-1398.72,0.00014602,2]
[353540370,1739904665083,-730.74,0.00014602,2]
[353540371,1739904665106,-500.0,0.00014602,2]
[353540372,1739904665126,-500.0,0.00014602,2]
[353540373,1739904665137,-500.0,0.00014602,2]
[353540374,1739904665147,-500.0,0.00014602,2]
[353540375,1739904665157,-748.94,0.00014602,2]
[353540376,1739904665167,-10223.13,0.00014602,2]
[353540377,1739904665177,-500.0,0.00014602,2]
[353540378,1739904665187,-500.0,0.00014602,2]
[353540379,1739904665198,-1165.79,0.00014602,2]
[353540380,1739904665208,-500.0,0.00014602,2]
[353540381,1739904665218,-1349.29,0.00014602,2]
[353540382,1739904665228,-500.0,0.00014602,2]
[353540383,1739904665239,-638.65,0.00014602,2]
[353540384,1739904665250,-772.53,0.00014602,2]
[353540385,1739904665260,-1535.25,0.00014602,2]
[353540386,1739904665270,-500.0,0.00014602,2]
[353540387,1739904665280,-500.0,0.00014602,2]
[353540388,1739904665290,-2947.02,0.00014602,2]
[353540389,1739904665300,-608.49,0.00014602,2]
[353540390,1739904665310,-798.91,0.00014602,2]
[353540391,1739904665380,-260.46421963,0.00014602,2]
[353540392,1739904665392,-500.0,0.00014602,2]
[353540393,1739904665403,-500.0,0.00014602,2]
[353540394,1739904665415,-31783.51,0.00014602,2]
[353540395,1739904665436,-1717.72,0.00014602,2]
[353540396,1739904665457,-1006.6,0.00014602,2]
[353540397,1739904665478,-784.86,0.00014602,2]
[353540398,1739904665500,-500.0,0.00014602,2]
[353540399,1739904665523,-495.91035114,0.00014668,2]
[353540400,1739904665544,-500.0,0.00014684,2]
[353540401,1739904665568,-686.89,0.00014684,2]
[353540402,1739904665588,-655.2,0.00014684,2]
[353540403,1739904665610,-500.0,0.00014684,2]
[353540404,1739904665631,-500.0,0.00014684,2]
[353540405,1739904665654,-500.0,0.00014684,2]
[353540406,1739904665675,-500.0,0.00014684,2]
[353540407,1739904665697,-979.8,0.00014684,2]
[353540408,1739904665719,-583.66,0.00014684,2]
[353540409,1739904665741,-606.93,0.00014684,2]
[353540410,1739904665762,-500.0,0.00014684,2]
[353540411,1739904665783,-500.0,0.00014684,2]
[353540412,1739904665805,-500.0,0.00014684,2]
[353540413,1739904665827,-500.0,0.00014684,2]
[353540414,1739904665849,-500.0,0.00014684,2]
[353540415,1739904665870,-500.0,0.00014684,2]
[353540416,1739904665892,-616.3,0.00014684,2]
[353540417,1739904665915,-500.0,0.00014684,2]
[353540418,1739904665939,-500.0,0.00014684,2]
[353540419,1739904665960,-5839.52,0.00014684,2]
[353540420,1739904665984,-500.0,0.00014684,2]
[353540421,1739904665994,-387.47419744,0.00014684,2]
[353540422,1739904666004,-500.0,0.00014684,2]
[353540423,1739904666014,-500.0,0.00014684,2]
[353540424,1739904666024,-526.22179878,0.00014684,2]
[353540425,1739904666034,-500.0,0.00014684,2]
[353540426,1739904666043,-735.62,0.00014684,2]
[353540427,1739904666053,-500.0,0.00014684,2]
[353540428,1739904666062,-500.0,0.00014684,2]
[353540429,1739904666072,-500.0,0.00014684,2]
[353540430,1739904666082,-531.62,0.00014684,2]
[353540431,1739904666091,-500.0,0.00014684,2]
[353540432,1739904666101,-1659.04,0.00014684,2]
[353540433,1739904666111,-500.0,0.00014684,2]
[353540434,1739904666120,-537.36,0.00014684,2]
[353540435,1739904666130,-605.637978,0.00014684,2]
[353540436,1739904666144,-605.637978,0.00014684,2]
[353540437,1739904666155,-685.01,0.00014684,2]
[353540438,1739904666165,-500.0,0.00014684,2]
[353540439,1739904666175,-500.0,0.00014684,2]
[353540440,1739904666186,-500.0,0.00014684,2]
[353540441,1739904666196,-500.0,0.00014684,2]
[353540442,1739904666206,-151.0,0.00014684,2]
[353540443,1739904666217,-3166.95,0.00014684,2]
[353540444,1739904666227,-500.0,0.00014684,2]
[353540445,1739904666238,-627.01,0.00014684,2]
[353540446,1739904666247,-1452.95,0.00014684,2]
[353540447,1739904666258,-267.607392,0.00014684,2]
[353540448,1739904666268,-1398.72,0.00014684,2]
[353540449,1739904666278,-267.607392,0.00014684,2]
[353540450,1739904666288,-730.74,0.00014684,2]
[353540451,1739904666299,-500.0,0.00014684,2]
[353540452,1739904666308,-586.3,0.00014684,2]
[353540453,1739904666318,-500.0,0.00014684,2]
[353540454,1739904666329,-611.44164495,0.00014684,2]
[353540455,1739904666338,-748.94,0.00014684,2]
[353540456,1739904666348,-10223.13,0.00014684,2]
[353540457,1739904666359,-500.0,0.00014684,2]
[353540458,1739904666369,-500.0,0.00014684,2]
[353540459,1739904666379,-1165.79,0.00014684,2]
[353540460,1739904666393,-500.0,0.00014684,2]
[353540461,1739904666403,-1349.29,0.00014684,2]
[353540462,1739904666414,-500.0,0.00014684,2]
[353540463,1739904666424,-638.65,0.00014684,2]
[353540464,1739904666435,-772.53,0.00014684,2]
[353540465,1739904666444,-1535.25,0.00014684,2]
[353540466,1739904666454,-352.0485204,0.00014684,2]
[353540467,1739904666465,-500.0,0.00014684,2]
[353540468,1739904666474,-2947.02,0.00014684,2]
[353540469,1739904666484,-608.49,0.00014684,2]
[353540470,1739904666494,-798.91,0.00014684,2]
[353540471,1739904666504,-500.0,0.00014684,2]
[353540472,1739904666520,-500.0,0.00014684,2]
[353540473,1739904666531,-31783.51,0.00014684,2]
[353540474,1739904666540,-1717.72,0.00014684,2]
[353540475,1739904666551,-1006.6,0.00014684,2]
[353540476,1739904666561,-784.86,0.00014684,2]
[353540477,1739904666571,-500.0,0.00014684,2]
[353540478,1739904666581,-1000.0,0.00014721,2]
[353540479,1739904666591,-1000.0,0.00014721,2]
[353540480,1739904666601,-500.0,0.00014767,2]
[353540481,1739904666611,-686.89,0.00014767,2]
[353540482,1739904666620,-655.2,0.00014767,2]
[353540483,1739904666630,-500.0,0.00014767,2]
[353540484,1739904666643,-500.0,0.00014767,2]
[353540485,1739904666656,-500.0,0.00014767,2]
[353540486,1739904666666,-500.0,0.00014767,2]
[353540487,1739904666676,-979.8,0.00014767,2]
[353540488,1739904666685,-583.66,0.00014767,2]
[353540489,1739904666694,-606.93,0.00014767,2]
[353540490,1739904666703,-535.77,0.00014767,2]
[353540491,1739904666713,-500.0,0.00014767,2]
[353540492,1739904666780,-500.0,0.00014767,2]
[353540493,1739904666794,-500.0,0.00014767,2]
[353540494,1739904666805,-500.0,0.00014767,2]
[353540495,1739904666815,-500.0,0.00014767,2]
[353540496,1739904666826,-616.3,0.00014767,2]
[353540497,1739904666836,-500.0,0.00014767,2]
[353540498,1739904666846,-500.0,0.00014767,2]
[353540499,1739904666856,-5839.52,0.00014767,2]
[353540500,1739904666867,-500.0,0.00014767,2]
[353540501,1739904666877,-500.0,0.00014767,2]
[353540502,1739904666890,-500.0,0.00014767,2]
[353540503,1739904666899,-339.71,0.00014767,2]
[353540504,1739904666910,-735.62,0.00014767,2]
[353540505,1739904666921,-248.68,0.00014767,2]
[353540506,1739904666931,-500.0,0.00014767,2]
[353540507,1739904666942,-500.0,0.00014767,2]
[353540508,1739904666952,-531.62,0.00014767,2]
[353540509,1739904666962,-500.0,0.00014767,2]
[353540510,1739904666972,-1659.04,0.00014767,2]
[353540511,1739904666982,-340.18,0.00014767,2]
[353540512,1739904666993,-537.36,0.00014767,2]
[353540513,1739904667004,-685.01,0.00014767,2]
[353540514,1739904667013,-500.0,0.00014767,2]
[353540515,1739904667023,-500.0,0.00014767,2]
[353540516,1739904667034,-500.0,0.00014767,2]
[353540517,1739904667044,-500.0,0.00014767,2]
[353540518,1739904667055,-3166.95,0.00014767,2]
[353540519,1739904667065,-519.67716213,0.00014767,2]
[353540520,1739904667075,-627.01,0.00014767,2]
[353540521,1739904667085,-1452.95,0.00014767,2]
[353540522,1739904667095,-1398.72,0.00014767,2]
[353540523,1739904667105,-730.74,0.00014767,2]
[353540524,1739904667115,-500.0,0.00014767,2]
[353540525,1739904667125,-500.0,0.00014767,2]
[353540526,1739904667137,-748.94,0.00014767,2]
[353540527,1739904667147,-10223.13,0.00014767,2]
[353540528,1739904667158,-500.0,0.00014767,2]
[353540529,1739904667169,-500.0,0.00014767,2]
[353540530,1739904667180,-1165.79,0.00014767,2]
[353540531,1739904667190,-500.0,0.00014767,2]
[353540532,1739904667200,-1349.29,0.00014767,2]
[353540533,1739904667210,-500.0,0.00014767,2]
[353540534,1739904667223,-638.65,0.00014767,2]
[353540535,1739904667233,-772.53,0.00014767,2]
[353540536,1739904667243,-1535.25,0.00014767,2]
[353540537,1739904667253,-500.0,0.00014767,2]
[353540538,1739904667263,-2947.02,0.00014767,2]
[353540539,1739904667273,-608.49,0.00014767,2]
[353540540,1739904667283,-798.91,0.00014767,2]
[353540541,1739904667293,-500.0,0.00014767,2]
[353540542,1739904667303,-500.0,0.00014767,2]
[353540543,1739904667314,-31783.51,0.00014767,2]
[353540544,1739904667324,-1717.72,0.00014767,2]
[353540545,1739904667335,-1006.6,0.00014767,2]
[353540546,1739904667345,-784.86,0.00014767,2]
[353540547,1739904667355,-500.0,0.00014787,2]
[353540548,1739904667366,-500.0,0.00014849,2]